fUST/lending_fUST_20251001
["ID","MTS","AMOUNT","RATE_DAILY","PERIOD"]
[388697610,1759320666800,-2003.68,0.00021369,2]
[388697611,1759320666810,-518.67,0.00021369,2]
[388697612,1759320666819,-500.0,0.00021369,2]
[388697613,1759320666829,-1225.59,0.00021369,2]
[388697614,1759320666838,-2607.87,0.00021369,2]
[388697615,1759320666848,-582.49,0.00021369,2]
[388697616,1759320666857,-500.0,0.00021369,2]
[388697617,1759320666866,-500.0,0.00021369,2]
[388697618,1759320666875,-2194.54,0.00021369,2]
[388697619,1759320666885,-2194.54,0.00021369,2]
[388697620,1759320666894,-1000.83,0.00021369,2]
[388697621,1759320666905,-500.0,0.00021369,2]
[388697622,1759320666914,-500.0,0.00021369,2]
[388697623,1759320666925,-500.0,0.00021369,2]
[388697624,1759320666935,-617.87,0.00021369,2]
[388697625,1759320666944,-1052.05,0.00021369,2]
[388697626,1759320666953,-514.89,0.00021369,2]
[388697627,1759320666962,-672.57,0.00021369,2]
[388697628,1759320666971,-500.0,0.00021369,2]
[388697629,1759320666980,-2195.31,0.00021369,2]
[388697630,1759320666990,-853.86,0.00021369,2]
[388697631,1759320666999,-525.14,0.00021369,2]
[388697632,1759320667009,-1144.28,0.00021369,2]
[388697633,1759320667019,-500.0,0.00021369,2]
[388697634,1759320667028,-500.0,0.00021369,2]
[388697635,1759320667038,-500.0,0.00021369,2]
[388697636,1759320667047,-837.14,0.00021369,2]
[388697637,1759320667057,-500.0,0.00021369,2]
[388697638,1759320667066,-1814.51,0.00021369,2]
[388697639,1759320667076,-626.76,0.00021369,2]
[388697640,1759320667085,-837.62,0.00021369,2]
[388697641,1759320667094,-3011.93,0.00021369,2]
[388697642,1759320667104,-3103.44,0.00021369,2]
[388697643,1759320667113,-500.0,0.00021369,2]
[388697644,1759320667122,-9707.79,0.00021369,2]
[388697645,1759320667134,-558.29,0.00021369,2]
[388697646,1759320667143,-623.69,0.00021369,2]
[388697647,1759320667153,-500.0,0.00021369,2]
[388697648,1759320667163,-500.0,0.00021369,2]
[388697649,1759320667172,-500.0,0.00021369,2]
[388697650,1759320667181,-1398.77,0.00021369,2]
[388697651,1759320667191,-500.0,0.00021369,2]
[388697652,1759320667200,-777.44,0.00021369,2]
[388697653,1759320667209,-2943.09,0.00021369,2]
[388697654,1759320667219,-769.37,0.00021369,2]
[388697655,1759320667228,-633.84,0.00021369,2]
[388697656,1759320667238,-699.87,0.00021369,2]
[388697657,1759320667248,-725.68,0.00021369,2]
[388697658,1759320667258,-536.36,0.00021369,2]
[388697659,1759320667267,-1416.79,0.00021369,2]
[388697660,1759320667276,-500.0,0.00021369,2]
[388697661,1759320667285,-890.93,0.00021369,2]
[388697662,1759320667294,-988.01,0.00021369,2]
[388697663,1759320667304,-542.9,0.00021369,2]
[388697664,1759320667315,-1581.99,0.00021369,2]
[388697665,1759320667324,-3836.84,0.00021369,2]
[388697666,1759320667333,-500.0,0.00021369,2]
[388697667,1759320667342,-500.0,0.00021369,2]
[388697668,1759320667352,-768.33,0.00021369,2]
[388697669,1759320667361,-753.42,0.00021369,2]
[388697670,1759320667371,-1397.1,0.00021369,2]
[388697671,1759320667381,-1175.95,0.00021369,2]
[388697672,1759320667391,-1131.51,0.00021369,2]
[388697673,1759320667400,-1040.35,0.00021369,2]
[388697674,1759320667410,-1765.72,0.00021369,2]
[388697675,1759320667419,-551.55376209,0.00021369,2]
[388697676,1759320667429,-1358.96,0.00021369,2]
[388697677,1759320667439,-914.43,0.00021369,2]
[388697678,1759320667448,-500.0,0.00021369,2]
[388697679,1759320667462,-1077.71,0.00021369,2]
[388697680,1759320667472,-1512.41,0.00021369,2]
[388697681,1759320667482,-1494.53,0.00021369,2]
[388697682,1759320667491,-1192.61,0.00021369,2]
[388697683,1759320667501,-2593.98,0.00021369,2]
[388697684,1759320667511,-500.0,0.00021369,2]
[388697685,1759320667520,-500.0,0.00021369,2]
[388697686,1759320667530,-912.84,0.00021369,2]
[388697687,1759320667540,-1365.62,0.00021369,2]
[388697688,1759320667549,-500.0,0.00021369,2]
[388697689,1759320667559,-2301.49,0.00021369,2]
[388697690,1759320667569,-500.0,0.00021369,2]
[388697691,1759320667578,-1635.84,0.00021369,2]
[388697692,1759320667588,-1331.41,0.00021369,2]
[388697693,1759320667598,-753.6,0.00021369,2]
[388697694,1759320667609,-608.8,0.00021369,2]
[388697695,1759320667619,-1410.65,0.00021369,2]
[388697696,1759320667630,-500.0,0.00021369,2]
[388697697,1759320667640,-969.33,0.00021369,2]
[388697698,1759320667650,-1287.65,0.00021369,2]
[388697699,1759320667660,-513.99,0.00021369,2]
[388697700,1759320667670,-500.0,0.00021369,2]
[388697701,1759320667680,-1732.6,0.00021369,2]
[388697702,1759320667690,-609.58,0.00021369,2]
[388697703,1759320667701,-1538.32,0.00021369,2]
[388697704,1759320667711,-500.0,0.00021369,2]
[388697705,1759320667721,-1690.93,0.00021369,2]
[388697706,1759320667730,-1362.49,0.00021369,2]
[388697707,1759320667740,-3743.6,0.00021369,2]
[388697708,1759320667749,-688.66,0.00021369,2]
[388697709,1759320667760,-500.0,0.00021369,2]
[388697710,1759320667770,-687.26,0.00021369,2]
[388697711,1759320667779,-1581.1,0.00021369,2]
[388697712,1759320667788,-5446.89,0.00021369,2]
[388697713,1759320667798,-532.14,0.00021369,2]
[388697714,1759320667808,-784.27,0.00021369,2]
[388697715,1759320667817,-870.41,0.00021369,2]
[388697716,1759320667827,-1124.52,0.00021369,2]
[388697717,1759320667837,-1500.68,0.00021369,2]
[388697718,1759320667847,-1329.71,0.00021369,2]
[388697719,1759320667856,-1828.66,0.00021369,2]
[388697720,1759320667866,-500.0,0.00021369,2]
[388697721,1759320667875,-996.02,0.00021369,2]
[388697722,1759320667884,-500.0,0.00021369,2]
[388697723,1759320667895,-641.62,0.00021369,2]
[388697724,1759320667905,-1631.9,0.00021369,2]
[388697725,1759320667914,-170.46856311,0.00021369,2]
[388697726,1759320667923,-1322.05,0.00021369,2]
[388697727,1759320667933,-681.1923782,0.00021369,2]
[388697728,1759320667943,-1948.55,0.00021369,2]
[388697729,1759320667953,-500.0,0.00021369,2]
[388697730,1759320667963,-2760.55,0.00021369,2]
[388697731,1759320667972,-500.0,0.00021369,2]
[388697732,1759320667981,-2922.0,0.00021369,2]
[388697733,1759320667991,-500.0,0.00021369,2]
[388697734,1759320668001,-1700.34,0.00021369,2]
[388697735,1759320668011,-3927.86,0.00021369,2]
[388697736,1759320668021,-500.0,0.00021369,2]
[388697737,1759320668031,-2025.65,0.00021369,2]
[388697738,1759320668041,-500.0,0.00021369,2]
[388697739,1759320668050,-941.44,0.00021369,2]
[388697740,1759320668060,-151.0,0.0002137,2]
[388697741,1759320668070,-151.0,0.0002137,2]
[388697742,1759320668079,-151.64028086,0.0002137,2]
[388697743,1759320668089,-151.0,0.0002137,2]
[388697744,1759320668098,-152.13909428,0.0002137,2]
[388697745,1759320668107,-151.0,0.0002137,2]
[388697746,1759320668117,-151.0,0.0002137,2]
[388697747,1759320668126,-151.0,0.0002137,2]
[388697748,1759320668136,-151.0,0.0002137,2]
[388697749,1759320668146,-151.0,0.0002137,2]
[388697750,1759320668155,-151.0,0.0002137,2]
[388697751,1759320668165,-151.73328894,0.0002137,2]
[388697752,1759320668175,-706.0,0.0002137,2]
[388697753,1759320668276,-181.11243802,0.0002137,2]
[388697754,1759320668288,-151.0,0.0002137,2]
[388697755,1759320668298,-334.30632108,0.00021375,2]
[388697756,1759320668307,-242.0,0.00021384,2]
[388697757,1759320668317,-652.0,0.000214,2]
[388697758,1759320668327,-166.0,0.00021497,2]
[388697759,1759320668336,-179.342345,0.000215,28]
[388697760,1759320668346,-179.342345,0.000215,28]
[388697761,1759320668355,-179.342345,0.000215,28]
[388697762,1759320668364,-179.342345,0.000215,28]
[388697763,1759320668374,-179.342345,0.000215,28]
[388697764,1759320668384,-600.0,0.00021524,2]
[388697765,1759320668394,-242.0,0.00021535,2]
[388697766,1759320668403,-1000.0,0.000216,2]
[388697767,1759320668413,-192.900455,0.000216,2]
[388697768,1759320668423,-500.0,0.00021638,2]
[388697769,1759320668433,-500.0,0.00021643,2]
[388697770,1759320668443,-694.6,0.00021643,2]
[388697771,1759320668454,-500.0,0.00021643,2]
[388697772,1759320668469,-500.0,0.00021643,2]
[388697773,1759320668480,-390.6188474,0.00021643,2]
[388697774,1759320668490,-736.33,0.00021643,2]
[388697775,1759320668500,-505.58,0.00021643,2]
[388697776,1759320668515,-737.15,0.00021643,2]
[388697777,1759320668524,-500.0,0.00021643,2]
[388697778,1759320668536,-989.99,0.00021643,2]
[388697779,1759320668546,-965.61,0.00021643,2]
[388697780,1759320668555,-525.24,0.00021643,2]
[388697781,1759320668565,-840.33,0.00021643,2]
[388697782,1759320668576,-500.0,0.00021643,2]
[388697783,1759320668586,-500.0,0.00021643,2]
[388697784,1759320668596,-843.24,0.00021643,2]
[388697785,1759320668607,-846.04,0.00021643,2]
[388697786,1759320668617,-2147.04,0.00021643,2]
[388697787,1759320668629,-550.58,0.00021643,2]
[388697788,1759320668639,-500.0,0.00021643,2]
[388697789,1759320668649,-500.0,0.00021643,2]
[388697790,1759320668659,-500.0,0.00021643,2]
[388697791,1759320668670,-707.69,0.00021643,2]
[388697792,1759320668680,-833.33,0.00021643,2]
[388697793,1759320668690,-500.0,0.00021643,2]
[388697794,1759320668700,-721.98,0.00021643,2]
[388697795,1759320668710,-1279.89,0.00021643,2]
[388697796,1759320668720,-614.61602649,0.00021643,2]
[388697797,1759320668730,-745.73,0.00021643,2]
[388697798,1759320668740,-500.0,0.00021643,2]
[388697799,1759320668750,-715.31,0.00021643,2]
[388697800,1759320668764,-2003.68,0.00021643,2]
[388697801,1759320668774,-518.67,0.00021643,2]
[388697802,1759320668783,-500.0,0.00021643,2]
[388697803,1759320668793,-1225.59,0.00021643,2]
[388697804,1759320668803,-2607.87,0.00021643,2]
[388697805,1759320668813,-582.49,0.00021643,2]
[388697806,1759320668823,-500.0,0.00021643,2]
[388697807,1759320668833,-2194.54,0.00021643,2]
[388697808,1759320668843,-1000.83,0.00021643,2]
[388697809,1759320668853,-500.0,0.00021643,2]
[388697810,1759320668863,-500.0,0.00021643,2]
[388697811,1759320668873,-500.0,0.00021643,2]
[388697812,1759320668883,-617.87,0.00021643,2]
[388697813,1759320668893,-1052.05,0.00021643,2]
[388697814,1759320668902,-514.89,0.00021643,2]
[388697815,1759320668912,-672.57,0.00021643,2]
[388697816,1759320668921,-500.0,0.00021643,2]
[388697817,1759320668931,-2195.31,0.00021643,2]
[388697818,1759320668941,-853.86,0.00021643,2]
[388697819,1759320668951,-525.14,0.00021643,2]
[388697820,1759320668961,-1144.28,0.00021643,2]
[388697821,1759320668971,-500.0,0.00021643,2]
[388697822,1759320668980,-500.0,0.00021643,2]
[388697823,1759320668991,-500.0,0.00021643,2]
[388697824,1759320669001,-837.14,0.00021643,2]
[388697825,1759320669013,-500.0,0.00021643,2]
[388697826,1759320669023,-1814.51,0.00021643,2]
[388697827,1759320669033,-626.76,0.00021643,2]
[388697828,1759320669043,-837.62,0.00021643,2]
[388697829,1759320669052,-3011.93,0.00021643,2]
[388697830,1759320669062,-3103.44,0.00021643,2]
[388697831,1759320669071,-500.0,0.00021643,2]
[388697832,1759320669081,-9707.79,0.00021643,2]
[388697833,1759320669097,-558.29,0.00021643,2]
[388697834,1759320669118,-623.69,0.00021643,2]
[388697835,1759320669134,-500.0,0.00021643,2]
[388697836,1759320669155,-500.0,0.00021643,2]
[388697837,1759320669176,-500.0,0.00021643,2]
[388697838,1759320669195,-1398.77,0.00021643,2]
[388697839,1759320669212,-500.0,0.00021643,2]
[388697840,1759320669229,-777.44,0.00021643,2]
[388697841,1759320669245,-2943.09,0.00021643,2]
[388697842,1759320669263,-769.37,0.00021643,2]
[388697843,1759320669281,-633.84,0.00021643,2]
[388697844,1759320669302,-699.87,0.00021643,2]
[388697845,1759320669318,-725.68,0.00021643,2]
[388697846,1759320669333,-536.36,0.00021643,2]
[388697847,1759320669352,-1416.79,0.00021643,2]
[388697848,1759320669367,-400.67256075,0.00021643,2]
[388697849,1759320669382,-890.93,0.00021643,2]
[388697850,1759320669397,-988.01,0.00021643,2]
[388697851,1759320669412,-542.9,0.00021643,2]
[388697852,1759320669427,-1581.99,0.00021643,2]
[388697853,1759320669442,-3836.84,0.00021643,2]
[388697854,1759320669457,-500.0,0.00021643,2]
[388697855,1759320669474,-500.0,0.00021643,2]
[388697856,1759320669488,-768.33,0.00021643,2]
[388697857,1759320669504,-753.42,0.00021643,2]
[388697858,1759320669518,-1397.1,0.00021643,2]
[388697859,1759320669534,-1175.95,0.00021643,2]
[388697860,1759320669548,-1131.51,0.00021643,2]
[388697861,1759320669562,-1040.35,0.00021643,2]
[388697862,1759320669577,-1765.72,0.00021643,2]
[388697863,1759320669592,-1358.96,0.00021643,2]
[388697864,1759320669606,-914.43,0.00021643,2]
[388697865,1759320669620,-500.0,0.00021643,2]
[388697866,1759320669634,-1077.71,0.00021643,2]
[388697867,1759320669648,-1512.41,0.00021643,2]
[388697868,1759320669661,-1494.53,0.00021643,2]
[388697869,1759320669675,-1192.61,0.00021643,2]
[388697870,1759320669689,-2456.8023973,0.00021643,2]
[388697871,1759320669985,-137.1776027,0.00021643,2]
[388697872,1759320670000,-500.0,0.00021643,2]
[388697873,1759320670015,-764.03670185,0.00021643,2]
[388697874,1759320670049,-1750.01,0.00019178,2]
[388697875,1759320670062,-148.80329815,0.00021643,2]
[388697876,1759320670072,-1365.62,0.00021643,2]
[388697877,1759320670081,-97.36670185,0.00021643,2]
[388697878,1759320670464,-423.25385927,0.00019178,2]
[388697879,1759320670475,-76.74614073,0.00019178,2]
[388697880,1759320670485,-283.24661611,0.00019178,2]
[388697881,1759320670506,-216.75338389,0.00019178,2]
[388697882,1759320670517,-1750.01,0.00019452,2]
[388697883,1759320670526,-480.0,0.00019452,2]
[388697884,1759320670536,-500.0,0.00019452,2]
[388697885,1759320670545,-1750.01,0.00019726,2]
[388697886,1759320670555,-1750.01,0.0002,2]
[388697887,1759320670565,-1750.01,0.00020273,2]
[388697888,1759320670575,-1750.01,0.00020547,2]
[388697889,1759320670584,-1750.01,0.00020821,2]
[388697890,1759320670594,-928.86,0.00021095,2]
[388697891,1759320670604,-1750.01,0.00021095,2]
[388697892,1759320670614,-928.86,0.00021369,2]
[388697893,1759320670623,-1750.01,0.00021369,2]
[388697894,1759320670634,-402.63329815,0.00021643,2]
[388697895,1759320670643,-2301.49,0.00021643,2]
[388697896,1759320670652,-500.0,0.00021643,2]
[388697897,1759320670662,-1635.84,0.00021643,2]
[388697898,1759320670673,-1331.41,0.00021643,2]
[388697899,1759320670682,-753.6,0.00021643,2]
[388697900,1759320670692,-608.8,0.00021643,2]
[388697901,1759320670703,-1410.65,0.00021643,2]
[388697902,1759320670712,-500.0,0.00021643,2]
[388697903,1759320670722,-969.33,0.00021643,2]
[388697904,1759320670732,-1287.65,0.00021643,2]
[388697905,1759320670741,-513.99,0.00021643,2]
[388697906,1759320670750,-500.0,0.00021643,2]
[388697907,1759320670760,-1732.6,0.00021643,2]
[388697908,1759320670770,-609.58,0.00021643,2]
[388697909,1759320670780,-1538.32,0.00021643,2]
[388697910,1759320670791,-1690.93,0.00021643,2]
[388697911,1759320670801,-1362.49,0.00021643,2]
[388697912,1759320670811,-3743.6,0.00021643,2]
[388697913,1759320670820,-688.66,0.00021643,2]
[388697914,1759320670829,-500.0,0.00021643,2]
[388697915,1759320670838,-687.26,0.00021643,2]
[388697916,1759320670848,-1581.1,0.00021643,2]
[388697917,1759320670857,-5446.89,0.00021643,2]
[388697918,1759320670867,-532.14,0.00021643,2]
[388697919,1759320670877,-784.27,0.00021643,2]
[388697920,1759320670887,-870.41,0.00021643,2]
[388697921,1759320670897,-1124.52,0.00021643,2]
[388697922,1759320670907,-1500.68,0.00021643,2]
[388697923,1759320670916,-1329.71,0.00021643,2]
[388697924,1759320670926,-1828.66,0.00021643,2]
[388697925,1759320670937,-500.0,0.00021643,2]
[388697926,1759320670946,-578.23331795,0.00021643,2]
[388697927,1759320670958,-417.78668205,0.00021643,2]
[388697928,1759320670967,-641.62,0.00021643,2]
[388697929,1759320670977,-1631.9,0.00021643,2]
[388697930,1759320670987,-1322.05,0.00021643,2]
[388697931,1759320670996,-1948.55,0.00021643,2]
[388697932,1759320671006,-500.0,0.00021643,2]
[388697933,1759320671016,-2586.51110643,0.00021643,2]
[388697934,1759320671470,-397.43,0.00019168,3]
[388697935,1759320671479,-500.0,0.00019178,2]
[388697936,1759320671488,-484.04416984,0.00019178,2]
[388697937,1759320671499,-500.0,0.00019178,2]
[388697938,1759320671509,-500.0,0.00019178,2]
[388697939,1759320671518,-2115.77836322,0.00019178,2]
[388697940,1759320671535,-23423.42675294,0.00019178,2]
[388697941,1759320671552,-6696.31009928,0.00019178,2]
[388697942,1759320672079,-500.0,0.00019178,2]
[388697943,1759320672089,-500.0,0.00019178,2]
[388697944,1759320672099,-901.78,0.00019178,2]
[388697945,1759320672108,-777.0,0.00019178,2]
[388697946,1759320672117,-399.619998,0.00019178,2]
[388697947,1759320672246,-100.380002,0.00019178,2]
[388697948,1759320672255,-488.524998,0.00019178,2]
[388697949,1759320757335,620.00090837,0.00034601,60]
[388697950,1759320780888,10000.01,0.00019078,2]
[388697951,1759320780911,10000.01,0.00019078,2]
[388697952,1759320780934,10000.01,0.00019078,2]
[388697953,1759320780959,10000.01,0.00019078,2]
[388697954,1759320780981,10000.01,0.00019078,2]
[388697955,1759320781004,10000.01,0.00019078,2]
[388697956,1759320781025,10000.01,0.00019078,2]
[388697957,1759320781047,10000.01,0.00019078,2]
[388697958,1759320784520,-173.828921,0.00019077,2]
[388697959,1759320791123,-126.171079,0.00019077,2]
[388697960,1759320795108,-8763.341014,0.00019078,2]
[388697961,1759320795274,-10000.01,0.00019078,2]
[388697962,1759320795404,-10000.01,0.00019078,2]
[388697963,1759320795545,-10000.01,0.00019078,2]
[388697964,1759320795690,-10000.01,0.00019078,2]
[388697965,1759320795814,-10000.01,0.00019078,2]
[388697966,1759320795938,-10000.01,0.00019078,2]
[388697967,1759320796158,-10000.01,0.00019078,2]
[388697968,1759320800180,-10000.01,0.00019078,2]
[388697969,1759320808082,-10000.01,0.00019078,2]
[388697970,1759320808451,-10000.01,0.00019078,2]
[388697971,1759320808560,-10000.01,0.00019078,2]
[388697972,1759320808711,-4164.5575641,0.00019078,2]
[388697973,1759320816507,356.2672406,0.0001845,2]
[388697975,1759320884425,184.49587219,0.00019077,2]
[388697976,1759320923313,462.65321081,0.00019,2]
[388697977,1759320943131,9352.860917,0.00019078,2]
[388697978,1759320943153,10000.01,0.00019078,2]
[388697979,1759320943175,10000.01,0.00019078,2]
[388697980,1759320943197,10000.01,0.00019078,2]
[388697981,1759320943219,10000.01,0.00019078,2]
[388697982,1759320943240,10000.01,0.00019078,2]
[388697983,1759320943262,10000.01,0.00019078,2]
[388697984,1759320943283,10000.01,0.00019078,2]
[388697985,1759320943305,10000.01,0.00019078,2]
[388697986,1759320943327,10000.01,0.00019078,2]
[388697987,1759320950506,6759.5526045,0.00018178,2]
[388697988,1759320956876,-9643.7427594,0.00019078,2]
[388697989,1759320957008,-10000.01,0.00019078,2]
[388697991,1759320957124,-10000.01,0.00019078,2]
[388697992,1759320957406,-1337.13644884,0.00019078,2]
[388697993,1759320957434,-7325.73710232,0.00019078,2]
[388697994,1759320957628,5000.0,0.00019008,2]
[388697995,1759320965523,5000.0,0.00019113,2]
[388697996,1759320981476,0.01,0.00019113,2]
[388697997,1759320981499,4999.99,0.00019113,2]
[388697998,1759320990130,5000.0,0.00019113,2]
[388698000,1759321001247,0.02,0.000191,2]
[388698001,1759321001268,299.98,0.000191,2]
[388698002,1759321005857,5000.0,0.00019113,2]
[388698003,1759321015360,159.24056731,0.00019068,2]
[388698004,1759321015687,159.24056727,0.0001907,2]
[388698005,1759321016123,159.24056727,0.00019072,2]
[388698006,1759321016425,159.24056727,0.00019073,2]
[388698007,1759321016747,159.24056727,0.00019075,2]
[388698008,1759321028699,3903.82716361,0.00019113,2]
[388698009,1759321028721,1096.17283639,0.00019113,2]
[388698011,1759321051691,5000.0,0.00019113,2]
[388698012,1759321067081,292.7300141,0.00018177,2]
[388698013,1759321076055,3611.10714951,0.00019113,2]
[388698014,1759321076077,1388.89285049,0.00019113,2]
[388698015,1759321078228,184.49001759,0.00019078,2]
[388698016,1759321099289,5000.0,0.00019113,2]
[388698017,1759321105875,3426.62713192,0.00019078,2]
[388698018,1759321105901,10000.01,0.00019078,2]
[388698019,1759321105929,10000.01,0.00019078,2]
[388698020,1759321105957,10000.01,0.00019078,2]
[388698021,1759321105984,10000.01,0.00019078,2]
[388698022,1759321106013,10000.01,0.00019078,2]
[388698023,1759321106042,10000.01,0.00019078,2]
[388698024,1759321106070,10000.01,0.00019078,2]
[388698025,1759321106098,10000.01,0.00019078,2]
[388698026,1759321106122,10000.01,0.00019078,2]
[388698027,1759321115188,-281.46564564,0.00019078,2]
[388698028,1759321115312,-562.93129128,0.00019078,2]
[388698029,1759321115462,-1125.86258256,0.00019078,2]
[388698030,1759321115605,-2251.72516512,0.00019078,2]
[388698031,1759321115790,-4503.45033024,0.00019078,2]
[388698032,1759321115917,-993.10933952,0.00019078,2]
[388698033,1759321122386,5000.0,0.00019111,2]
[388698034,1759321131075,3013.79132096,0.00019111,2]
[388698035,1759321131096,486.20867904,0.00019111,2]
[388698036,1759321146988,935.95294776,0.00019111,2]
[388698037,1759321185322,1707.32407731,0.00019078,2]
[388698038,1759321230630,213.7785813,0.00018177,2]
[388698039,1759321260853,1807.71,0.00034534,60]
[388698040,1759321268427,6656.74571459,0.00019078,2]
[388698041,1759321268449,10000.01,0.00019078,2]
[388698042,1759321268471,10000.01,0.00019078,2]
[388698043,1759321268494,10000.01,0.00019078,2]
[388698044,1759321268515,10000.01,0.00019078,2]
[388698045,1759321268537,10000.01,0.00019078,2]
[388698046,1759321268560,10000.01,0.00019078,2]
[388698047,1759321268582,10000.01,0.00019078,2]
[388698048,1759321268605,10000.01,0.00019078,2]
[388698049,1759321268627,10000.01,0.00019078,2]
[388698051,1759321290643,-4535.36864936,0.00019078,2]
[388698052,1759321290991,-1508.8951474,0.00019078,2]
[388698053,1759321291021,-6982.2197052,0.00019078,2]
[388698054,1759321303887,219.28967742,0.00019067,2]
[388698055,1759321304494,259.8903133,0.00018177,2]
[388698056,1759321345407,165.2508507,0.00018177,2]
[388698057,1759321412222,9355.57915858,0.00019078,2]
[388698058,1759321412244,10000.01,0.00019078,2]
[388698059,1759321412266,10000.01,0.00019078,2]
[388698060,1759321412288,9699.37061664,0.00019078,2]
[388698061,1759321418934,300.63938336,0.0001915,2]
[388698062,1759321418956,1010.99706904,0.0001915,2]
[388698063,1759321434484,5000.0,0.0001915,2]
[388698064,1759321443059,3688.3635476,0.0001915,2]
[388698065,1759321458451,300.64938336,0.0001915,2]
[388698066,1759321458473,4699.35061664,0.0001915,2]
[388698067,1759321466404,3387.85542064,0.00019008,2]
[388698074,1759321591903,17304.7787378,0.0001817,2]
[388698091,1759321745376,212.0,0.000189,2]
[388698092,1759321766255,-300.0,0.00019062,2]
[388698093,1759321767053,-4700.65938336,0.00019063,7]
[388698094,1759321767138,-10000.01,0.00019063,7]
[388698095,1759321767293,-824.48467194,0.00019063,7]
[388698096,1759321767317,-8351.04065612,0.00019063,7]
[388698097,1759321767397,-293.36416222,0.00019063,7]
[388698114,1759321832171,-1200.0,0.00019077,2]
[388698115,1759321832181,-300.0,0.00019077,2]
[388698116,1759321832191,-300.0,0.00019077,2]
[388698117,1759321832200,-300.0,0.00019077,2]
[388698118,1759321832210,-300.0,0.00019077,2]
[388698119,1759321832220,-1200.0,0.00019077,2]
[388698120,1759321832229,-1365.85926184,0.00019078,2]
[388698121,1759321832238,-10140.26533374,0.00019078,2]
[388698123,1759321832251,-15603.7450788,0.00019078,2]
[388698125,1759321832261,-13446.16354728,0.00019164,2]
[388698127,1759321832270,-500.0,0.00019164,2]
[388698157,1759321832279,-500.0,0.00019164,2]
[388698158,1759321832542,-500.0,0.00019164,2]
[388698159,1759321832558,-500.0,0.00019164,2]
[388698160,1759321832567,-500.0,0.00019164,2]
[388698161,1759321832577,-500.0,0.00019164,2]
[388698162,1759321832587,-500.0,0.00019164,2]
[388698163,1759321832596,-526.39290358,0.00019164,2]
[388698164,1759321832606,-539.49102113,0.00019164,2]
[388698165,1759321832615,-500.0,0.00019164,2]
[388698166,1759321832625,-500.0,0.00019164,2]
[388698167,1759321832635,-425.92624817,0.00019164,2]
[388698168,1759321832644,-500.0,0.00019164,2]
[388698169,1759321832653,-500.0,0.00019164,2]
[388698170,1759321832663,-500.0,0.00019164,2]
[388698171,1759321832673,-500.0,0.00019164,2]
[388698172,1759321832682,-500.0,0.00019164,2]
[388698173,1759321832691,-500.0,0.00019164,2]
[388698174,1759321832700,-500.0,0.00019164,2]
[388698175,1759321832710,-500.0,0.00019164,2]
[388698176,1759321832719,-233.37113933,0.00019164,2]
[388698177,1759321832728,-500.0,0.00019164,2]
[388698178,1759321832738,-500.0,0.00019164,2]
[388698179,1759321832748,-500.0,0.00019164,2]
[388698180,1759321832758,-500.0,0.00019164,2]
[388698181,1759321832769,-500.0,0.00019164,2]
[388698182,1759321832778,-500.0,0.00019164,2]
[388698183,1759321832788,-500.0,0.00019164,2]
[388698184,1759321832797,-552.83166621,0.00019164,2]